bitfinex/quotes_SOLUSD_20230701
["timestamp","ask_amount","ask_price","bid_price","bid_amount"]
[1688193301413,23.298,18.156,18.142,192.864]
[1688193301614,78.299,18.155,18.142,192.864]
[1688193303020,9.00709273,18.154,18.142,192.864]
[1688193305138,32.30809273,18.154,18.142,192.864]
[1688193305323,78.3,18.155,18.142,192.864]
[1688193305519,9.32773611,18.154,18.142,23.315]
[1688193305718,32.62873611,18.154,18.142,23.315]
[1688193306833,9.32773611,18.154,18.142,23.315]
[1688193307336,32.62773611,18.154,18.142,23.315]
[1688193307529,55.0,18.153,18.142,23.315]
[1688193309032,55.0,18.154,18.142,23.315]
[1688193309546,8.66822194,18.153,18.142,23.315]
[1688193309713,55.0,18.152,18.142,23.315]
[1688193309917,8.66931297,18.153,18.142,23.315]
[1688193310130,55.0,18.152,18.142,23.315]
[1688193310334,23.303,18.152,18.142,23.315]
[1688193310919,10.50525503,18.153,18.142,23.315]
[1688193311131,55.0,18.152,18.142,23.315]
[1688193311434,9.42064384,18.153,18.142,23.315]
[1688193311634,55.0,18.152,18.142,23.315]
[1688193312121,55.0,18.153,18.142,23.315]
[1688193315236,55.0,18.154,18.142,23.315]
[1688193315534,8.75063154,18.153,18.142,23.315]
[1688193315736,55.0,18.152,18.142,23.315]
[1688193316919,55.0,18.153,18.142,23.315]
[1688193317534,78.302,18.153,18.142,23.315]
[1688193317835,55.0,18.153,18.142,23.315]
[1688193318038,9.12430743,18.153,18.142,23.315]
[1688193321538,55.0,18.152,18.142,23.315]
[1688193321735,8.63732785,18.153,18.142,23.315]
[1688193321936,55.0,18.152,18.142,23.315]
[1688193322438,55.0,18.153,18.142,23.315]
[1688193333444,23.298,18.156,18.142,23.315]
[1688193333635,11.43322612,18.155,18.142,23.315]
[1688193333837,17.60264428,18.158,18.142,23.315]
[1688193334930,40.89864428,18.158,18.142,23.315]
[1688193335539,55.0,18.157,18.142,23.315]
[1688193335741,17.60264428,18.156,18.142,23.315]
[1688193335944,40.90064428,18.156,18.142,23.315]
[1688193337528,55.0,18.155,18.142,23.315]
[1688193337731,40.90364428,18.154,18.142,23.315]
[1688193337939,23.301,18.154,18.142,23.315]
[1688193342726,96.5398,18.159,18.142,23.315]
[1688193342932,18.44165703,18.158,18.143,55.0]
[1688193343230,18.44165703,18.158,18.147,23.308]
[1688193343747,23.296,18.157,18.147,23.308]
[1688193343938,23.296,18.157,18.146,23.31]
[1688193344136,9.01618937,18.156,18.148,23.307]
[1688193344336,23.298,18.156,18.148,23.307]
[1688193350332,23.298,18.156,18.146,23.309]
[1688193351435,83.278,18.156,18.14,35.87]
[1688193351755,23.305,18.151,18.142,23.314]
[1688193352449,23.305,18.151,18.142,59.184]
[1688193355955,12.60361394,18.155,18.142,59.184]
[1688193356755,23.303,18.152,18.142,59.184]
[1688193362059,23.303,18.152,18.142,35.87]
[1688193362264,36.18,18.15,18.132,60.058]
[1688193362557,23.312,18.145,18.13,35.87]
[1688193362757,18.98002874,18.144,18.131,23.33]
[1688193363147,23.318,18.141,18.13,35.87]
[1688193363469,23.318,18.141,18.131,23.312]
[1688193363639,18.98002874,18.148,18.131,23.329]
[1688193363840,92.1395,18.142,18.131,23.329]
[1688193364039,23.317,18.142,18.131,23.329]
[1688193364247,11.03546759,18.141,18.13,35.87]
[1688193364452,23.319,18.14,18.13,59.201]
[1688193364742,23.314,18.144,18.13,119.267]
[1688193364943,10.25746049,18.143,18.13,119.267]
[1688193365156,23.315,18.143,18.13,119.267]
[1688193365550,23.315,18.143,18.13,59.201]
[1688193365750,9.2098271,18.142,18.13,59.201]
[1688193366050,23.318,18.14,18.13,59.201]
[1688193366642,60.017,18.145,18.13,59.201]
[1688193366843,12.22674158,18.143,18.13,59.201]
[1688193367058,13.68737513,18.144,18.13,59.201]
[1688193367749,23.318,18.141,18.13,59.201]
[1688193371353,23.315,18.143,18.13,59.201]
[1688193371556,23.315,18.143,18.131,55.0]
[1688193371765,23.315,18.143,18.134,23.325]
[1688193372850,36.18,18.14,18.129,60.017]
[1688193373168,23.322,18.137,18.124,109.629]
[1688193373369,10.60507114,18.136,18.124,109.629]
[1688193373662,33.92907114,18.136,18.127,23.334]
[1688193373851,23.324,18.136,18.127,23.334]
[1688193374860,23.324,18.136,18.126,23.336]
[1688193379369,96.213,18.14,18.126,23.336]
[1688193379674,23.322,18.137,18.13,23.331]
[1688193379875,23.322,18.137,18.128,23.333]
[1688193381063,23.322,18.137,18.127,55.0]
[1688193381261,23.322,18.137,18.127,78.335]
[1688193381575,23.322,18.137,18.127,55.0]
[1688193382572,23.322,18.137,18.124,23.338]
[1688193382774,12.72708831,18.136,18.124,23.338]
[1688193382971,23.328,18.133,18.124,23.338]
[1688193383875,23.326,18.134,18.124,23.338]
[1688193384072,23.326,18.134,18.127,23.334]
[1688193384257,23.319,18.14,18.131,23.329]
[1688193384458,99.6953,18.141,18.131,23.329]
[1688193384654,123.0123,18.141,18.133,23.326]
[1688193386372,123.0123,18.141,18.13,35.87]
[1688193386563,123.0123,18.141,18.131,23.329]
[1688193386965,123.0123,18.141,18.13,23.331]
[1688193387164,101.58980189,18.14,18.128,23.332]
[1688193387472,23.323,18.137,18.128,23.332]
[1688193388677,23.323,18.137,18.127,23.334]
[1688193388884,23.321,18.139,18.13,35.87]
[1688193389064,23.321,18.139,18.132,23.328]
[1688193389381,23.318,18.141,18.132,23.328]
[1688193389579,23.318,18.14,18.132,23.328]
[1688193392679,23.317,18.142,18.132,23.328]
[1688193393970,23.315,18.143,18.132,23.328]
[1688193399378,13.61073063,18.145,18.132,23.328]
[1688193399573,18.98002874,18.149,18.136,83.368]
[1688193399778,18.98002874,18.149,18.14,83.348]
[1688193399964,95.5249,18.15,18.14,83.348]
[1688193400581,8.8693,18.149,18.14,83.348]
[1688193400883,23.307,18.149,18.14,23.317]
[1688193404580,83.31,18.149,18.138,23.319]
[1688193404784,13.02592337,18.148,18.137,23.307]
[1688193404980,23.31,18.147,18.139,23.319]
[1688193408686,155.1701,18.152,18.139,23.319]
[1688193408880,18.98002874,18.15,18.132,9.34597125]
[1688193409084,55.0,18.149,18.132,9.34597125]
[1688193409280,23.312,18.145,18.132,9.34597125]
[1688193409488,23.318,18.141,18.133,23.327]
[1688193409785,42.29502874,18.143,18.133,23.327]
[1688193412181,42.29502874,18.143,18.129,110.347918]
[1688193412373,42.29502874,18.143,18.13,20.70283386]
[1688193412675,42.29502874,18.143,18.132,23.328]
[1688193418893,18.98002874,18.143,18.132,23.328]
[1688193420178,42.29502874,18.143,18.13,20.0]
[1688193420383,75.0,18.142,18.124,60.083]
[1688193420589,23.323,18.137,18.125,51.61984525]
[1688193420788,23.323,18.137,18.125,42.273874]
[1688193421001,18.98002874,18.141,18.127,23.334]
[1688193421192,23.32,18.139,18.128,1.25446127]
[1688193421383,18.98002874,18.138,18.13,23.33]
[1688193421588,23.322,18.137,18.13,23.33]
[1688193421896,23.322,18.137,18.128,23.333]
[1688193424299,23.321,18.139,18.128,23.333]
[1688193424490,18.98002874,18.138,18.128,23.333]
[1688193426009,42.30102874,18.138,18.128,23.333]
[1688193426188,23.321,18.138,18.128,23.333]
[1688193429505,18.98002874,18.137,18.128,23.333]
[1688193429811,23.324,18.136,18.128,23.333]
[1688193433600,169.547,18.143,18.128,23.333]
[1688193433908,23.321,18.139,18.129,77.87177051]
[1688193434109,23.321,18.139,18.132,23.327]
[1688193434699,60.014,18.146,18.132,23.327]
[1688193434905,73.98002874,18.145,18.132,23.327]
[1688193435207,18.98002874,18.143,18.132,23.327]
[1688193435408,23.319,18.14,18.132,23.327]
[1688193437007,23.316,18.142,18.132,23.327]
[1688193437210,18.98002874,18.141,18.132,23.327]
[1688193437412,42.29702874,18.141,18.132,23.327]
[1688193439514,23.315,18.143,18.132,23.327]
[1688193439711,18.98002874,18.142,18.132,23.327]
[1688193440404,18.98002874,18.143,18.132,23.327]
[1688193441105,42.29102874,18.146,18.136,23.323]
[1688193446223,18.98002874,18.146,18.136,23.323]
[1688193447621,18.98002874,18.146,18.132,169.63]
[1688193447622,23.304,18.152,18.139,83.353]
[1688193447812,23.304,18.152,18.143,23.313]
[1688193450623,18.98002874,18.153,18.143,23.313]
[1688193452721,23.301,18.154,18.143,23.313]
[1688193452922,18.98002874,18.153,18.143,23.313]
[1688193453311,23.302,18.153,18.143,23.313]
[1688193455536,8.84920794,18.152,18.143,23.313]
[1688193457633,18.17887136,18.154,18.144,4.73097199]
[1688193457835,18.17887136,18.154,18.147,23.309]
[1688193461839,18.98002874,18.157,18.147,23.309]
[1688193462538,42.27702874,18.157,18.147,23.309]
[1688193462837,18.98002874,18.157,18.147,23.309]
[1688193463922,42.27702874,18.157,18.147,23.309]
[1688193467933,53.11422796,18.157,18.146,23.31]
[1688193468133,23.301,18.153,18.145,23.311]
[1688193468442,42.27902874,18.155,18.147,23.309]
[1688193469541,18.98002874,18.155,18.147,23.309]
[1688193469733,18.98002874,18.157,18.147,23.309]
[1688193470130,23.298,18.156,18.147,23.309]
[1688193470329,18.98002874,18.155,18.147,23.309]
[1688193470530,42.27902874,18.155,18.147,23.309]
[1688193473640,18.98002874,18.155,18.147,23.309]
[1688193473841,18.98002874,18.156,18.147,23.309]
[1688193474244,28.79357227,18.163,18.15,83.303]
[1688193474245,18.98002874,18.159,18.15,83.303]
[1688193474748,23.294,18.159,18.151,8.78345083]
[1688193475045,23.294,18.159,18.152,23.302]
[1688193475725,8.73466447,18.158,18.152,23.302]
[1688193475923,23.294,18.159,18.152,23.302]
[1688193477749,23.294,18.159,18.151,23.304]
[1688193477943,10.00405842,18.158,18.151,23.304]
[1688193478143,33.30005842,18.158,18.151,23.304]
[1688193478349,23.296,18.158,18.151,23.304]
[1688193480250,23.296,18.158,18.149,23.305]
[1688193480451,9.82106979,18.157,18.149,23.305]
[1688193480749,23.298,18.156,18.149,23.305]
[1688193481148,23.298,18.156,18.146,36.17]
[1688193481448,13.15472943,18.155,18.146,36.17]
[1688193481653,13.15472943,18.155,18.148,23.307]
[1688193481845,23.298,18.156,18.148,23.307]
[1688193482748,23.298,18.156,18.146,36.17]
[1688193482949,17.8847357,18.155,18.146,59.48]
[1688193483149,23.301,18.154,18.146,59.48]
[1688193483545,17.8847357,18.158,18.146,59.48]
[1688193483853,23.3,18.155,18.147,4.501877]
[1688193484151,17.8847357,18.156,18.147,27.809877]
[1688193484334,41.1827357,18.156,18.147,27.809877]
[1688193484534,23.298,18.156,18.147,23.308]
[1688193485550,17.8847357,18.159,18.147,34.14519922]
[1688193485745,17.8847357,18.159,18.148,61.61926832]
[1688193485946,17.8847357,18.159,18.151,23.304]
[1688193486659,41.1787357,18.159,18.151,23.304]
[1688193489450,41.1787357,18.159,18.152,55.0]
[1688193489751,23.294,18.159,18.152,78.302]
[1688193491442,23.292,18.161,18.152,78.302]
[1688193491642,23.292,18.161,18.153,9.34597125]
[1688193491846,23.289,18.163,18.155,23.298]
[1688193492051,93.955,18.167,18.156,55.0]
[1688193492052,23.287,18.165,18.156,55.0]
[1688193492257,25.01561924,18.166,18.16,23.292]
[1688193492454,25.01561924,18.166,18.156,114.978]
[1688193492455,23.282,18.168,18.161,78.29]
[1688193492753,23.286,18.166,18.159,23.293]
[1688193497354,23.286,18.166,18.157,23.295]
[1688193497666,11.9680705,18.165,18.157,23.295]
[1688193497964,23.288,18.164,18.157,23.295]
[1688193498759,23.286,18.166,18.157,23.295]
[1688193498969,11.9680705,18.165,18.157,23.295]
[1688193499167,20.04026267,18.169,18.158,2.22225442]
[1688193499367,23.284,18.167,18.155,59.981]
[1688193499565,75.04026267,18.166,18.156,23.297]
[1688193499767,23.288,18.164,18.156,23.297]
[1688193500949,10.02571661,18.163,18.156,23.297]
[1688193501150,33.31471661,18.163,18.156,23.297]
[1688193501350,23.289,18.163,18.156,23.297]
[1688193504161,13.11955298,18.164,18.156,23.297]
[1688193505367,23.283,18.168,18.157,4.41047117]
[1688193505667,23.283,18.168,18.16,23.292]
[1688193505869,22.66366948,18.167,18.16,23.292]
[1688193508964,22.66366948,18.169,18.16,23.292]
[1688193509763,45.94466948,18.169,18.16,23.292]
[1688193512974,45.94466948,18.169,18.152,23.288]
[1688193513280,45.94466948,18.169,18.157,23.296]
[1688193513872,45.94466948,18.169,18.158,1.23695732]
[1688193514073,45.94466948,18.169,18.161,23.291]
[1688193514376,22.66366948,18.169,18.161,23.291]
[1688193517077,45.94466948,18.169,18.159,23.293]
[1688193526967,22.66366948,18.171,18.159,23.293]
[1688193527284,20.0,18.17,18.159,23.293]
[1688193527477,22.66366948,18.169,18.159,23.293]
[1688193527978,45.94566948,18.169,18.159,23.293]
[1688193528174,45.94566948,18.169,18.153,10.83719922]
[1688193528381,45.94566948,18.169,18.154,64.34597125]
[1688193528581,45.94566948,18.169,18.154,87.64497125]
[1688193528775,45.94566948,18.169,18.154,98.48217047]
[1688193529480,45.94566948,18.169,18.155,10.83719922]
[1688193529687,45.94566948,18.169,18.159,23.293]
[1688193530990,45.94566948,18.169,18.155,10.83719922]
[1688193531177,55.0,18.168,18.153,2.76401392]
[1688193531489,55.0,18.168,18.152,23.288]
[1688193531490,23.288,18.164,18.154,23.299]
[1688193531679,26.57718737,18.163,18.154,23.299]
[1688193531875,23.292,18.161,18.154,23.299]
[1688193532791,23.29,18.162,18.154,23.299]
[1688193532979,23.29,18.162,18.152,23.288]
[1688193533179,26.57718737,18.161,18.152,46.59]
[1688193533387,49.86918737,18.161,18.152,46.59]
[1688193533695,23.292,18.161,18.152,46.59]
[1688193535494,23.29,18.162,18.152,46.59]
[1688193538195,23.289,18.163,18.152,46.59]
[1688193538398,13.23073898,18.162,18.153,1.23786658]
[1688193538698,13.23073898,18.162,18.155,23.298]
[1688193539095,156.9474,18.166,18.155,23.298]
[1688193539096,19.58975825,18.165,18.155,23.298]
[1688193539400,23.288,18.164,18.155,23.298]
[1688193539897,19.58975825,18.163,18.155,23.298]
[1688193543395,23.288,18.164,18.155,23.298]
[1688193543994,42.87275825,18.168,18.156,5.14930378]
[1688193544187,42.89813129,18.166,18.159,23.293]
[1688193544984,42.89813129,18.166,18.152,132.751]
[1688193544985,42.89813129,18.166,18.153,2.27055146]
[1688193545493,42.89813129,18.166,18.154,23.299]
[1688193545984,19.61313129,18.166,18.155,1.60706467]
[1688193546185,42.89813129,18.166,18.158,23.295]
[1688193550605,19.61313129,18.166,18.158,23.295]
[1688193550801,42.89813129,18.166,18.158,23.295]
[1688193551209,19.61313129,18.166,18.158,23.295]
[1688193551393,42.89613129,18.168,18.158,23.295]
[1688193552104,19.61313129,18.168,18.158,23.295]
[1688193552688,19.61313129,18.168,18.159,55.0]
[1688193552889,28.90885943,18.181,18.161,192.657]
[1688193552890,19.61313129,18.169,18.161,192.657]
[1688193553103,90.5103,18.176,18.162,8.75790656]
[1688193553407,23.273,18.175,18.166,23.285]
[1688193553918,8.96636516,18.174,18.166,23.285]
[1688193554214,23.275,18.174,18.166,23.285]
[1688193554601,9.94798733,18.177,18.166,23.285]
[1688193555100,19.99260513,18.178,18.166,23.285]
[1688193555504,23.274,18.175,18.166,23.285]
[1688193556700,19.99260513,18.178,18.166,23.285]
[1688193557807,23.273,18.176,18.166,23.285]
[1688193557990,74.99260513,18.175,18.166,23.285]
[1688193558308,23.276,18.173,18.166,23.285]
[1688193559905,12.91590584,18.172,18.161,2.4019454]
[1688193560109,36.19390584,18.172,18.163,23.287]
[1688193560411,12.91590584,18.172,18.163,83.244]
[1688193560607,23.277,18.172,18.163,23.287]
[1688193561295,55.0,18.175,18.163,83.244]
[1688193561595,11.58446813,18.174,18.163,83.244]
[1688193562200,34.85946813,18.174,18.163,83.244]
[1688193566610,11.58446813,18.174,18.163,83.244]
[1688193567119,23.272,18.176,18.164,5.53984908]
[1688193567417,23.272,18.176,18.168,23.282]
[1688193568098,9.76797633,18.175,18.167,23.283]
[1688193568418,33.04197633,18.175,18.167,23.283]
[1688193568713,23.274,18.175,18.167,23.283]
[1688193574410,10.16990194,18.178,18.167,23.283]
[1688193574618,23.272,18.177,18.167,23.283]
[1688193574915,11.57857697,18.176,18.167,23.283]
[1688193575612,23.272,18.176,18.16,91.15]
[1688193575811,17.40561889,18.175,18.161,123.73053146]
[1688193576001,23.275,18.174,18.164,23.286]
[1688193576215,23.272,18.176,18.165,55.0]
[1688193576517,90.5103,18.179,18.168,23.281]
[1688193576720,23.272,18.176,18.168,23.281]
[1688193579324,23.272,18.176,18.166,23.284]
[1688193580134,23.27,18.178,18.17,35.85]
[1688193580317,23.27,18.178,18.172,23.277]
[1688193582535,23.27,18.178,18.17,59.129]
[1688193586443,23.27,18.178,18.169,35.85]
[1688193586646,23.27,18.178,18.168,23.281]
[1688193586945,8.8630718,18.177,18.169,55.0]
[1688193587148,8.8630718,18.177,18.167,55.0]
[1688193587149,23.274,18.175,18.16,85.0376]
[1688193587457,12.14523981,18.174,18.166,55.0]
[1688193587628,23.277,18.173,18.166,55.0]
[1688193588130,23.277,18.173,18.165,23.286]
[1688193589246,23.277,18.173,18.165,46.563]
[1688193589862,23.275,18.175,18.165,46.563]
[1688193590032,23.275,18.175,18.166,55.0]
[1688193590238,35.83,18.18,18.168,23.281]
[1688193590537,34.75934821,18.179,18.168,23.281]
[1688193591854,23.273,18.176,18.166,78.284]
[1688193592636,23.273,18.176,18.166,55.0]
[1688193593150,8.87740773,18.175,18.166,55.0]
[1688193593350,8.87740773,18.175,18.166,78.285]
[1688193593653,23.273,18.175,18.167,2.00722031]
[1688193593852,23.273,18.175,18.168,23.282]
[1688193600363,23.273,18.175,18.169,55.0]
[1688193600549,23.273,18.175,18.169,78.281]
[1688193603867,23.272,18.176,18.169,78.281]
[1688193608168,23.27,18.178,18.169,78.281]
[1688193608460,23.269,18.178,18.169,78.281]
[1688193610071,23.269,18.178,18.169,55.0]
[1688193610262,9.54300697,18.177,18.169,55.0]
[1688193610461,23.273,18.175,18.169,55.0]
[1688193615768,26.97816498,18.186,18.169,55.0]
[1688193616069,23.262,18.184,18.174,23.274]
[1688193616256,23.262,18.184,18.176,23.271]
[1688193624563,23.262,18.184,18.175,23.273]
[1688193625062,23.262,18.184,18.174,23.274]
[1688193637176,23.262,18.184,18.171,119.81]
[1688193637177,55.0,18.183,18.172,23.276]
[1688193637387,23.267,18.18,18.172,23.276]
[1688193637686,59.097,18.18,18.172,23.276]
[1688193637880,20.0,18.179,18.172,23.276]
[1688193638075,43.269,18.179,18.172,23.276]
[1688193638786,43.269,18.179,18.171,23.278]
[1688193641387,43.269,18.179,18.169,23.28]
[1688193641888,8.62614725,18.178,18.169,23.28]
[1688193642188,23.272,18.177,18.169,23.28]
[1688193645791,23.272,18.177,18.168,59.097]
[1688193645990,8.63975422,18.176,18.169,55.0]
[1688193646291,23.275,18.174,18.169,55.0]
[1688193646499,20.0,18.179,18.169,55.0]
[1688193646683,23.27,18.178,18.169,78.28]
[1688193646992,23.27,18.178,18.169,55.0]
[1688193647895,23.27,18.178,18.169,78.281]
[1688193650787,23.27,18.178,18.169,55.0]
[1688193653299,23.27,18.178,18.16,247.50387357]
[1688193653597,19.90127542,18.177,18.162,3.4242789]
[1688193653799,23.276,18.173,18.164,23.287]
[1688193655495,23.276,18.173,18.165,55.0]
[1688193655699,23.276,18.173,18.165,78.286]
[1688193656794,23.276,18.173,18.16,35.85]
[1688193656983,13.30739329,18.172,18.16,59.142]
[1688193657182,23.282,18.169,18.16,59.142]
[1688193657401,23.282,18.169,18.16,82.418]
[1688193657586,154.2079,18.174,18.16,82.418]
[1688193657790,23.281,18.169,18.16,82.418]
[1688193657991,23.281,18.169,18.161,55.0]
[1688193658284,23.281,18.169,18.162,23.289]
[1688193659308,23.28,18.171,18.162,23.289]
[1688193661598,23.28,18.171,18.16,59.126]
[1688193661792,23.28,18.171,18.161,23.291]
[1688193666712,23.277,18.172,18.161,23.291]
[1688193667004,94.2859,18.174,18.162,55.0]
[1688193667204,33.27437654,18.173,18.162,55.0]
[1688193667406,33.27437654,18.173,18.163,23.288]
[1688193667906,9.99737654,18.173,18.163,23.288]
[1688193668084,94.2859,18.174,18.163,23.288]
[1688193668499,15.97893541,18.177,18.164,6.69416473]
[1688193668705,23.272,18.177,18.167,23.282]
[1688193672090,23.272,18.177,18.166,23.285]
[1688193672296,17.53053548,18.176,18.166,23.285]
[1688193672602,23.276,18.173,18.166,23.285]
[1688193675406,23.276,18.173,18.16,103.33126073]
[1688193675619,12.23893776,18.172,18.162,23.289]
[1688193675796,23.28,18.17,18.162,23.289]
[1688193676302,59.923,18.174,18.162,23.289]
[1688193676501,10.42527312,18.173,18.162,23.289]
[1688193677797,23.279,18.171,18.162,23.289]
[1688193681619,103.50169922,18.178,18.16,59.126]
[1688193681821,103.50169922,18.178,18.162,23.289]
[1688193681822,23.279,18.171,18.162,23.289]
[1688193682913,23.275,18.174,18.162,23.289]
[1688193683217,17.52852963,18.176,18.162,23.289]
[1688193683416,55.0,18.175,18.162,23.289]
[1688193683617,17.52852963,18.176,18.162,23.289]
[1688193683823,55.0,18.175,18.162,23.289]
[1688193684120,17.52852963,18.174,18.162,23.289]
[1688193684310,40.80352963,18.174,18.162,23.289]
[1688193690322,55.0,18.173,18.162,23.289]
[1688193690526,40.80652963,18.172,18.162,23.289]
[1688193690823,23.278,18.172,18.162,23.289]
[1688193696026,23.26,18.186,18.163,65.83719922]
[1688193696221,26.57718737,18.184,18.17,36.15]
[1688193696531,421.761,18.185,18.174,83.194]
[1688193696532,20.0,18.183,18.174,83.194]
[1688193696916,43.264,18.183,18.173,23.275]
[1688193697119,11.31402088,18.182,18.171,55.0]
[1688193697318,20.0,18.181,18.174,23.274]
[1688193698137,15.64073468,18.185,18.174,23.274]
[1688193698634,20.0,18.184,18.174,23.274]
[1688193698837,23.265,18.182,18.174,23.274]
[1688193699426,20.0,18.181,18.174,23.274]
[1688193699629,43.266,18.181,18.171,98.264]
[1688193699823,43.266,18.181,18.173,23.275]
[1688193704342,23.266,18.181,18.173,23.275]
[1688193705540,28.90885943,18.199,18.174,55.0]
[1688193705746,23.252,18.192,18.181,23.265]
[1688193706041,207.594,18.196,18.18,36.15]
[1688193706042,23.251,18.193,18.185,23.26]
[1688193707443,98.392,18.196,18.189,23.255]
[1688193707444,121.639,18.196,18.189,23.255]
[1688193707639,121.639,18.196,18.19,36.15]
[1688193708029,23.247,18.196,18.19,59.403]
[1688193708346,23.245,18.198,18.19,59.403]
[1688193709638,23.245,18.198,18.187,23.257]
[1688193714743,23.245,18.198,18.186,55.0]
[1688193714947,23.245,18.198,18.185,55.0]
[1688193715347,23.245,18.198,18.186,20.0]
[1688193715544,13.45448334,18.205,18.194,23.248]
[1688193715732,23.234,18.206,18.198,23.244]
[1688193716738,120.8256,18.208,18.198,23.244]
[1688193722457,23.237,18.204,18.195,23.247]
[1688193724043,55.0,18.203,18.193,23.249]
[1688193724358,22.741,18.2,18.193,23.249]
[1688193726356,1.0,38.4,18.193,132.466]
[1688193726357,12.40498452,18.209,18.193,132.466]
[1688193726546,95.6253,18.206,18.193,132.466]
[1688193726748,95.454,18.21,18.193,132.466]
[1688193727055,23.233,18.207,18.193,132.466]
[1688193728551,55.0,18.206,18.193,23.249]
[1688193728755,23.239,18.203,18.193,23.249]
[1688193735457,118.4327,18.205,18.193,23.249]
[1688193735765,118.4327,18.205,18.197,23.245]
[1688193737565,118.4327,18.205,18.195,23.247]
[1688193740967,118.4327,18.205,18.194,55.0]
[1688193741157,9.12069236,18.204,18.194,55.0]
[1688193741361,23.24,18.201,18.194,55.0]
[1688193741757,95.1967,18.205,18.194,23.249]
[1688193741955,23.24,18.202,18.194,23.249]
[1688193747872,23.24,18.202,18.195,55.0]
[1688193748568,23.24,18.202,18.195,78.247]
[1688193750077,23.24,18.202,18.189,274.369258]
[1688193750078,23.24,18.202,18.189,109.991258]
[1688193750289,23.24,18.202,18.186,158.34702319]
[1688193750290,35.74,18.2,18.186,23.258]
[1688193750466,23.247,18.196,18.186,23.258]
[1688193750778,23.247,18.196,18.186,83.086]
[1688193751177,23.247,18.196,18.186,59.828]
[1688193752578,23.247,18.196,18.187,55.0]
[1688193755583,23.247,18.196,18.186,59.828]
[1688193755784,23.247,18.196,18.184,23.261]
[1688193755989,10.58905161,18.195,18.184,23.261]
[1688193756165,23.252,18.192,18.184,23.261]
[1688193756793,23.252,18.192,18.184,55.14]
[1688193757474,23.252,18.192,18.184,78.402]
[1688193757876,23.252,18.192,18.184,55.14]
[1688193758376,23.252,18.192,18.184,78.401]
[1688193758977,23.252,18.192,18.184,55.14]
[1688193759389,23.252,18.192,18.179,176.87502319]
[1688193759572,9.10202252,18.191,18.18,75.0]
[1688193759770,23.256,18.189,18.182,23.264]
[1688193759971,23.256,18.189,18.183,55.0]
[1688193760791,23.256,18.189,18.183,110.0]
[1688193761296,23.256,18.189,18.183,133.262]
[1688193761592,23.253,18.191,18.183,133.262]